Cogmind - Beta 15 @@@ ROGUE MODE // 2025.08.01 @ 23:31:10 Player: DURANDAL Result: Self-destructed Performance ------------- Evolutions (2) 1000 Regions Visited (5) 1000 Robots Destroyed (26) 130 Value Destroyed (685) 685 Prototype IDs (23) 460 Alien Tech Used (0) 0 Bonus (300) 300 TOTAL SCORE: 3575 Bonus ------- Aligned with FarCom 300 Cogmind --------- Core Integrity 335/550 Matter 300/300 Energy 100/100 System Corruption 0% Temperature Cool (0) Movement Core (50) Location -8/Materials Parts ------- > --- POWER (1) -------- (None) > --- PROPULSION (3) --- (None) > --- UTILITY (4) ------ (None) > --- WEAPON (3) ------- (None) > --- INVENTORY (5) ---- Ion Engine Light Ion Engine VTOL Module Weapon Shielding Light Armor Plating Peak State ------------ > --- POWER ------------ Light Nuclear Core > --- PROPULSION ------- Light Treads Light Treads > --- UTILITY ---------- Humpback High-capacity Matter Pod Cloak of Protection > --- WEAPON ----------- Shotgun Rocket Launcher > --- INVENTORY -------- Ion Engine Light Ion Engine Light Nuclear Core VTOL Module Medium Storage Unit Large Matter Pod Transport Network Coupler Weapon Shielding Light Armor Plating Improved Light Armor Plating Hacking Suite System Restoration Module Recalibrator Recalibrator Shock Rifle [Rating: 23] Favorites ----------- Power Ion Engine Engine Ion Engine Power Core Light Nuclear Core Propulsion Light Treads Treads Light Treads Utility High-capacity Matter Pod Device Cloak of Protection Storage High-capacity Matter Pod Weapon Shotgun Ballistic Gun Shotgun Launcher Rocket Launcher Special Weapon Mining Laser Build | -11 -10 -10 -10 -9 -8 ------- Run | Yrd Mat Min Exi Min Mat Slots Evolved 4 | . . . . . 4 Power . | . . . . . . Propulsion 1 | . . . . . 1 Utility 2 | . . . . . 2 Weapon 1 | . . . . . 1 Parts Attached 20 | 6 5 2 . 2 5 Power 4 | 1 1 . . . 2 Engine 2 | 1 1 . . . . Core 2 | . . . . . 2 Reactor . | . . . . . . Propulsion 5 | 2 1 1 . . 1 Treads 5 | 2 1 1 . . 1 Leg . | . . . . . . Wheel . | . . . . . . Hover . | . . . . . . Flight . | . . . . . . Utility 5 | 1 2 . . . 2 Device 1 | . . . . . 1 Storage 4 | 1 2 . . . 1 Processor . | . . . . . . Hackware . | . . . . . . Protection . | . . . . . . Artifact . | . . . . . . Weapon 6 | 2 1 1 . 2 . Energy Gun . | . . . . . . Energy Cannon . | . . . . . . Ballistic Gun 4 | 2 1 . . 1 . Ballistic Cannon . | . . . . . . Launcher 1 | . . . . 1 . Special Weapon 1 | . . 1 . . . Impact Weapon . | . . . . . . Slashing Weapon . | . . . . . . Piercing Weapon . | . . . . . . Special Melee Weapon . | . . . . . . Unidentified Prototypes . | . . . . . . Parts Lost 17 | . 3 5 . . 9 Power 3 | . 1 . . . 2 Propulsion 5 | . 1 2 . . 2 Utility 3 | . . . . . 3 Weapon 6 | . 1 3 . . 2 Highest Loss Streak 8 | . 1 5 . . 8 To Critical Strikes . | . . . . . . Average Backups 8 | 1 7 7 7 9 10 Power 2 | . 2 2 2 2 2 Propulsion . | . . . . . . Utility 5 | . 3 5 5 7 6 Weapon . | . 1 . . . . Tool/Special . | . . . . . . Unused Backups 13 | . . . 1 . 12 Power 1 | . . . . . 1 Propulsion 1 | . . . . . 1 Utility 10 | . . . 1 . 9 Weapon 1 | . . . . . 1 Tool/Special . | . . . . . . Average Slot Usage (%) 72 | . 96 63 57 65 65 Engine 10 | . 13 14 14 14 3 Core 1 | . . . . . 4 Treads 17 | . 26 15 14 14 12 Device 3 | . . . . . 8 Storage 24 | . 27 28 28 28 17 Ballistic Gun 12 | . 26 4 . 8 8 Launcher 3 | . . . . . 8 Peak Build Rating 23 | 6 8 8 6 10 23 Average Rating 11 | 4 7 5 5 7 19 On Entrance 5 | . 6 8 5 6 10 Naked Turns 2 | . . . . . 2 Heaviest Build 224 | 13 22 21 19 26 224 Greatest Support 40 | 40 40 40 20 20 40 Greatest Overweight (x) 74 | . . . . 1 74 Average Overweight (x) . | . . . . . 7 Largest Inventory Capacity 35 | 8 10 10 10 10 35 Average Capacity 18 | 7 9 10 10 10 34 Most Carried 15 | 5 10 9 10 10 15 Average Carried 8 | 1 7 7 7 9 10 Final Capacity 10 | 8 10 10 10 10 5 Final Carried 10 | 1 9 7 10 10 5 Class Distribution -------------------- 65% | Mutant 34% | Hauler-Mutant Dominant Class ---------------- Mutant | -10/Materials Mutant | -10/Mines Mutant | -10/Exiles Mutant | -9/Mines Hauler-Mutant | -8/Materials Resources | -11 -10 -10 -10 -9 -8 ----------- Run | Yrd Mat Min Exi Min Mat Matter Collected 1029 | 167 704 21 . 10 127 Remotely . | . . . . . . Salvage Created 829 | . 637 25 . . 167 Parts 52 | . 44 1 . . 7 Haulers Intercepted 2 | . 1 . . . 1 Recyclers Shooed . | . . . . . . Parts Field Recycled . | . . . . . . Retrieved Matter . | . . . . . . Parts Self-Destructed . | . . . . . . Prevented . | . . . . . . Kills | -11 -10 -10 -10 -9 -8 ------- Run | Yrd Mat Min Exi Min Mat Combat Hostiles Destroyed 19 | . 14 2 . . 3 Melee 1 | . . 1 . . . Guns 14 | . 14 . . . . Cannons 1 | . . 1 . . . AOE 3 | . . . . . 3 Classes Destroyed 7 | . 6 . . . 1 Worker 2 | . 2 . . . . Builder 1 | . 1 . . . . Hauler 2 | . 1 . . . 1 Recycler 1 | . . . . . 1 Operator 1 | . 1 . . . . Swarmer 3 | . 3 . . . . Grunt 16 | . 11 2 . . 3 Best Kill Streak 4 | . 4 2 . . 4 Combat Bots Only 3 | . 3 2 . . 3 Max Kills in Single Turn 2 | . 1 1 . . 2 Gunslinging . | . . . . . . Exploded 2 | . . . . . 2 Melee 1 | . . 1 . . . Uniques/NPCs Destroyed . | . . . . . . Combat | -11 -10 -10 -10 -9 -8 -------- Run | Yrd Mat Min Exi Min Mat Hostile Shots Fired 158 | . 79 39 . . 40 Missed 37 | . 18 7 . . 12 Hits 121 | . 61 32 . . 28 Projectile 121 | . 61 32 . . 28 Critical Strikes 4 | . 1 . . . 3 Damage Taken 2436 | . 809 433 . . 1194 Core 388 | . 90 83 . . 215 Absorbed by Shields . | . . . . . . Core Remaining (%) 65 | 100 . . . 30 . Volleys Fired 103 | . 62 24 . . 17 Largest 2 | . 2 2 . . 1 Hottest 120 | . 40 120 . . 33 Shots Fired 168 | . 123 28 . . 17 Gun 156 | . 123 24 . . 9 Cannon . | . . . . . . Launcher 8 | . . . . . 8 Special 4 | . . 4 . . . Kinetic 156 | . 123 24 . . 9 Thermal 4 | . . 4 . . . Explosive 8 | . . . . . 8 Electromagnetic . | . . . . . . Robot Hit Streak 9 | . 9 4 . . 9 Robot Miss Streak 3 | . 3 3 . . 2 Penetration Max . | . . . . . . Secondary Targets 2 | . 2 . . . . Max Gunslinging Chain 1 | . 1 . . . . Shots Hit Robots 102 | . 82 10 . . 10 Core Hits 50 | . 33 5 . . 12 Critical Kills . | . . . . . . Critical Parts Destroyed 1 | . . . . . 1 Critical Strikes 1 | . . . . . 1 Destroy 1 | . . . . . 1 Melee Attacks . | . . . . . . Impact . | . . . . . . Slashing . | . . . . . . Piercing . | . . . . . . Sneak Attacks . | . . . . . . Combat Hostiles . | . . . . . . Follow-up Attacks . | . . . . . . Damage Inflicted 1522 | . 903 125 . . 494 Guns 1079 | . 878 65 . . 136 Cannons . | . . . . . . Explosions 358 | . . . . . 358 Melee . | . . . . . . Ramming 37 | . 25 12 . . . Kinetic 1079 | . 878 65 . . 136 Thermal 48 | . . 48 . . . Explosive 358 | . . . . . 358 Electromagnetic . | . . . . . . Impact . | . . . . . . Slashing . | . . . . . . Piercing . | . . . . . . Highest Corruption . | . . . . . . Average Corruption . | . . . . . . Corruption Purged . | . . . . . . Corruption Blocked . | . . . . . . Overload Shots . | . . . . . . Overflow Damage . | . . . . . . Projectiles . | . . . . . . Explosions . | . . . . . . Melee . | . . . . . . Knockbacks . | . . . . . . Impact . | . . . . . . Kinetic . | . . . . . . Secondary . | . . . . . . Self-Inflicted Damage 62 | . . . . . 62 Shots 4 | . . . . . 4 Rammed 7 | . 4 3 . . . Targets Rammed 8 | . 4 4 . . . Kicked . | . . . . . . Crushed 1 | . . 1 . . . Highest Temperature 190 | . 27 190 . . 1 Average Temperature 33 | . 8 80 . . 1 Received Heat Transfer 702 | . 369 252 . . 81 Siege Activations . | . . . . . . Martial Activations . | . . . . . . Shielding Activations . | . . . . . . Robots Disrupted . | . . . . . . Combat Hostiles . | . . . . . . Robots Corrupted . | . . . . . . Combat Hostiles . | . . . . . . Parts Fried . | . . . . . . Impact Corruptions . | . . . . . . Robots Melted . | . . . . . . Combat Hostiles . | . . . . . . Parts Melted . | . . . . . . Heat Transferred 100 | . . 100 . . . Parts Sabotaged . | . . . . . . Parts Stolen . | . . . . . . Parts Stripped . | . . . . . . Power Chain Reactions . | . . . . . . Alert | -11 -10 -10 -10 -9 -8 ------- Run | Yrd Mat Min Exi Min Mat Maximum Alert Level . | . . . . . . Low Security (%) 100 | 100 100 100 . 100 100 Level 1 . | . . . . . . Level 2 . | . . . . . . Level 3 . | . . . . . . Level 4 . | . . . . . . Level 5 . | . . . . . . High Security . | . . . . . . Max Security . | . . . . . . Peak Influence 96 | . 96 31 . . 90 Initial 25 | . . 25 . . . Average 16 | . 42 3 . . 7 Influence Increases 545 | . 376 51 . . 118 Destroy 0b10 Robot/C 380 | . 280 40 . . 60 Destroy 0b10 Robot/NC 35 | . 25 . . . 10 Destroy Leader 84 | . 62 10 . . 12 Successful Hack 9 | . 9 . . . . Destroy Structure 22 | . . 1 . . 21 Lose Combat Pursuer 15 | . . . . . 15 Influence Decreases 545 | . 311 116 . . 118 Entered New Map 40 | . . 40 . . . Time Decay 372 | . 281 36 . . 55 Lost Part 133 | . 30 40 . . 63 Squads Dispatched 4 | . 3 . . . 1 Investigation 3 | . 2 . . . 1 Extermination . | . . . . . . Reinforcement 1 | . 1 . . . . Assault . | . . . . . . Garrison . | . . . . . . Intercept . | . . . . . . Searches Triggered . | . . . . . . Construction Impeded . | . . . . . . Haulers Reinforced . | . . . . . . Active Scanning Responses . | . . . . . . Cargo Convoy Interrupts . | . . . . . . Stealth | -11 -10 -10 -10 -9 -8 --------- Run | Yrd Mat Min Exi Min Mat Distress Signals 2 | . 2 . . . . Communications Jammed . | . . . . . . Distress Signals . | . . . . . . Times Spotted 30 | . 22 2 . . 6 Peak Tracking Total 7 | . 7 2 . . 3 Tactical Retreats 1 | . . . . . 1 Traps | -11 -10 -10 -10 -9 -8 ------- Run | Yrd Mat Min Exi Min Mat Traps Triggered 2 | . 1 . . . 1 Indirectly . | . . . . . . Trap Hack Attempts . | . . . . . . Triggered . | . . . . . . Disarmed . | . . . . . . Reprogrammed . | . . . . . . Reused . | . . . . . . Traps Extracted . | . . . . . . Installed . | . . . . . . Triggered . | . . . . . . Machines | -11 -10 -10 -10 -9 -8 ---------- Run | Yrd Mat Min Exi Min Mat Machines Disabled . | . . . . . . Max in Single Turn . | . . . . . . Machines Repaired . | . . . . . . Machines Dismantled . | . . . . . . Machines Sabotaged . | . . . . . . Overloaded Fab Kills . | . . . . . . Hacking | -11 -10 -10 -10 -9 -8 --------- Run | Yrd Mat Min Exi Min Mat Machines Accessed 5 | . 1 . 4 . . Terminals 1 | . 1 . . . . Fabricators . | . . . . . . Repair Stations . | . . . . . . Recycling Units . | . . . . . . Scanalyzers . | . . . . . . Garrison Access . | . . . . . . Total Hacks 25 | . 3 . 22 . . Successful 23 | . 1 . 22 . . Failed 2 | . 2 . . . . Catastrophic 1 | . 1 . . . . Database Lockouts . | . . . . . . Manual 1 | . . . 1 . . Terminals 3 | . 3 . . . . Fabricators . | . . . . . . Repair Stations . | . . . . . . Recycling Units . | . . . . . . Scanalyzers . | . . . . . . Garrison Access . | . . . . . . Terminal Hacks 23 | . 1 . 22 . . Record 21 | . . . 21 . . Registered Prototypes 1 | . 1 . . . . Proto ID Catalog 1 | . . . 1 . . Fabricator Hacks . | . . . . . . Repair Station Hacks . | . . . . . . Recycling Unit Hacks . | . . . . . . Scanalyzer . | . . . . . . Garrison Access Hacks . | . . . . . . Unauthorized Hacks . | . . . . . . Terminals . | . . . . . . Fabricators . | . . . . . . Repair Stations . | . . . . . . Recycling Units . | . . . . . . Scanalyzers . | . . . . . . Garrison Access . | . . . . . . Data Cores Recovered . | . . . . . . Used . | . . . . . . Hacking Detections 1 | . 1 . . . . Full Trace Events 1 | . 1 . . . . Feedback Events . | . . . . . . Feedback Blocked . | . . . . . . Robot Schematics Acquired . | . . . . . . Robots Built . | . . . . . . Authchips . | . . . . . . Time . | . . . . . . Total Robot Build Rating . | . . . . . . Part Schematics Acquired . | . . . . . . Parts Built . | . . . . . . Authchips . | . . . . . . Time . | . . . . . . Total Part Build Rating . | . . . . . . Parts Repaired . | . . . . . . Time . | . . . . . . Parts Recycled . | . . . . . . Recycled Matter . | . . . . . . Retrieved Matter . | . . . . . . Retrieved Components . | . . . . . . Parts Scanalyzed . | . . . . . . Part Schematics Acquired . | . . . . . . Parts Damaged . | . . . . . . Bothacking | -11 -10 -10 -10 -9 -8 ------------ Run | Yrd Mat Min Exi Min Mat Used RIF Installer . | . . . . . . Robots Hacked . | . . . . . . Non-combat . | . . . . . . Combat . | . . . . . . Robot Hacks Applied . | . . . . . . Relay Couplers Released . | . . . . . . Fabnet Peak Effective % . | . . . . . . Robots Rewired . | . . . . . . Allies Hacked . | . . . . . . Hacks Repelled . | . . . . . . Allies | -11 -10 -10 -10 -9 -8 -------- Run | Yrd Mat Min Exi Min Mat Total Allies . | . . . . . . Largest Group . | . . . . . . Highest-Rated Group . | . . . . . . Highest-Rated Ally . | . . . . . . Total Orders . | . . . . . . Ally Attacks . | . . . . . . Total Damage . | . . . . . . Kills . | . . . . . . Allies Corrupted . | . . . . . . Allies Melted . | . . . . . . Intel | -11 -10 -10 -10 -9 -8 ------- Run | Yrd Mat Min Exi Min Mat Active Infowar (turns) 55 | . . . . . 55 Cloaking 55 | . . . . . 55 Robot Analysis Total . | . . . . . . Derelict Logs Recovered 3 | . . 1 . 2 . Drone Launches . | . . . . . . Drone Recoveries . | . . . . . . Exploration | -11 -10 -10 -10 -9 -8 ------------- Run | Yrd Mat Min Exi Min Mat Turns Passed 3213 | 72 907 237 436 451 1110 Spaces Moved 1181 | 43 405 108 271 216 138 Core 10 | 8 . . . . 2 Treads 1171 | 35 405 108 271 216 136 Legs . | . . . . . . Wheels . | . . . . . . Hover . | . . . . . . Flight . | . . . . . . Fastest Speed 50 | 50 160 160 160 160 560 Average Speed 235 | 139 160 160 160 198 750 Slowest Speed 3750 | 160 160 160 160 240 3750 Overloaded Moves . | . . . . . . Propulsion Burnouts . | . . . . . . Robots Hopped . | . . . . . . Potential Cave-ins . | . . . . . . Cave-ins Triggered . | . . . . . . Exploration Rate (%) 37 | 5 44 38 63 56 19 Regions Visited 5 Branch Regions 3 Pre-discovered Areas 1 | . . . 1 . . Known Exits Taken . | . . . . . . Unknown Exits Taken 5 | 1 1 1 1 1 . Scrap Searched 1 | . . . . 1 . Spaces Dug . | . . . . . . Terrain Destroyed 61 | . . 1 . . 60 Melee . | . . . . . . Projectile 1 | . . 1 . . . AOE 60 | . . . . . 60 Terrain Rammed . | . . . . . . Walls Destroyed . | . . . . . . Machines Disabled . | . . . . . . Actions | -11 -10 -10 -10 -9 -8 --------- Run | Yrd Mat Min Exi Min Mat Total 1453 | 55 551 139 274 239 195 Wait 106 | . 62 2 . 16 26 Move 1176 | 42 404 107 270 215 138 Hop . | . . . . . . Pick Up 35 | 7 13 . 3 4 8 Fast Attach . | . . . . . . Attach 18 | 6 4 2 . 2 4 Detach 1 | . . . . . 1 Swap 2 | . 1 . . . 1 Drop 4 | . 1 . 1 2 . Fire 103 | . 62 24 . . 17 Melee . | . . . . . . Ram . | . . . . . . Kick . | . . . . . . Crush 8 | . 4 4 . . . Escape Stasis . | . . . . . . Rewire . | . . . . . . Trap . | . . . . . . Miscellaneous . | . . . . . . Route ------- -11/Scrapyard -10/Materials (discovered 2 exits: [*Mat] / [*Min]) -10/Mines -10/Exiles -9/Mines -8/Materials (discovered 1 exit: [*Fac]) History --------- Turn | Location | Event 9 | -11/Scrapyard | Discovered new exit (range 16) 73 | -11/Scrapyard | Entered Materials 316 | -10/Materials | Build established: Mutant 525 | -10/Materials | Discovered new exit (range 13) 665 | -10/Materials | Discovered new exit (range 15) 980 | -10/Materials | Entered Mines 1010 | -10/Mines | Core integrity fell below 50% 1072 | -10/Mines | Lost 5 parts (2n3w) 1176 | -10/Mines | Learned Materials stockpile data 1209 | -10/Mines | Deemed a non-threat by the Exiles lab entrance 1211 | -10/Mines | Discovered new exit (range 5) 1217 | -10/Mines | Entered Exiles 1262 | -10/Exiles | Met 8R-AWN 1285 | -10/Exiles | Met EX-HEX 1344 | -10/Exiles | Met EX-BIN 1363 | -10/Exiles | Aligned with FarCom system 1365 | -10/Exiles | Given EX-Vault access code 1421 | -10/Exiles | Opened EX-Vault 1429 | -10/Exiles | Found Prototype Device 1439 | -10/Exiles | Found Prototype Device 1448 | -10/Exiles | Identified Cloak of Protection 1448 | -10/Exiles | Identified Trap Reconfigurator 1506 | -10/Exiles | Warned to stay clear of 0b10 Research branches 1551 | -10/Exiles | Met EX-DEC 1566 | -10/Exiles | Learned location of Zion (-6) 1635 | -10/Exiles | Discovered new exit (range 12) 1653 | -10/Exiles | Left Exiles lab with Cloak of Protection 1653 | -10/Exiles | Entered Mines 1759 | -9/Mines | Learned 2 Materials zone layouts 2047 | -9/Mines | Learned Materials stockpile data 2066 | -9/Mines | Discovered new exit (range 12) 2090 | -9/Mines | Received a Rocket Launcher from a helpful Derelict 2104 | -9/Mines | Entered Materials 2104 | -8/Materials | Evolved 4 slots: Propulsion x1, Utility x2, Weapon x1 2393 | -8/Materials | Build established: Hauler-Mutant 3126 | -8/Materials | Discovered new exit (range 16) 3214 | -8/Materials | Self-destructed Last Messages --------------- 03180_ U-05 Engineer lays Concrete. 03183_ U-05 Engineer builds a Wall. 03186_ Penetrated by Slug. 03186_ Knocked back. 03187_ U-05 Engineer builds a Wall. 03192_ Shotgun destroyed. 03195_ U-05 Engineer lays Concrete. 03198_ U-05 Engineer builds a Wall. 03202_ Penetrated by Slug. 03202_ U-05 Engineer lays Concrete. 03205_ U-05 Engineer builds a Wall. 03206_ U-05 Engineer lays Concrete. 03207_ U-05 Engineer builds a Wall. 03207_ Rocket Launcher destroyed. 03209_ U-05 Engineer lays Concrete. 03212_ Humpback destroyed. 03212_ Critical hit (Blast). 03212_ Knocked back. 03212_ U-05 Engineer builds a Wall. 03213_ U-05 Engineer lays Concrete. Map ----- +----------------------------------------------------+ | ??# ###+######????????????? | | ??## ## #????????????? | | ???# ## """ #????????????? | | ???# ## """ #????????????? | | ???# ## """ #????????????? | | ???# ## #????????????? | | ???# ## """ #????????????? | | ???# ## """ !!!#????????????? | | ???# ## """ !!!#????????????? | | ???# ## !!!#????????????? | | ???# ###########????????????? | | ???# #####??????????????????? | | ???# !#??????????????????? | | ???# !#??????????????????? | | ???# !#??????????????????? | | ??## !!##?????????????????? | | ?## !! #?????????????????? | | ?# = !!##?????????????????? | | ## # # ##??????????????????? | | # ## ## #??????????????????? | | # ## ## ##??????????????????? | | # # u## #??????????????????? | | ####% %# #??????????????????? | | # #%u # #??????????????????? | | # ## %! #??????????????????? | | ####%%@!# #??????????????????? | | ??#;%[%!!# #??????????????????? | | ??## !!## ##??????????????????? | | ???# !#?##???????????????????? | | ??#; ;??????????????????????? | | ??#; ;??????????????????????? | | ??#; ##?????????????????????? | | ??## ;??????????????????????? | | ???# #??????????????????????? | | ???# #??????????????????????? | | ???# #??????????????????????? | | ???# ???????????????????????? | | ???# ???????????????????????? | | ???# ???????????????????????? | | ???# ???????????????????????? | | ???# ???????????????????????? | | ???# H ???????????????????????? | | ???? ???????????????????????? | | ??????????????????????????????? | | ??????????????????????????????? | | ??????????????????????????????? | | ??????????????????????????????? | | ??????????????????????????????? | | ??????????????????????????????? | | ??????????????????????????????? | +----------------------------------------------------+ Best States ------------- Heat Dissipation 31 Energy Generation 14 Energy Capacity 250 Matter Stores 500 Matter Capacity 500 Sight Range 16 Terrain Scan Density 10 Cloak Strength 5 Evasion (%) 50 Recoil Reduction 2 Item Schematics ----------------- None Robot Schematics ------------------ None Fabricated ------------ Nothing Repaired ---------- Nothing Alien Tech Used ----------------- None Achievements -------------- None Challenges ------------ None Game ------ Seed LinearSwordMagmablaster Manual? 0 Play Time 00:25:50 Cumulative 24.5 hours Start 2025.08.01 @ 17:54:39 End 2025.08.01 @ 23:31:10 Sessions 3 Manual Loads 0 Difficulty Rogue Special Mode None Game No. 46 Rogue 46 Adventurer 0 Explorer 0 Win Type - Total 0 Types 0/0/0/0/0/0/0/0/0/0 Lore% 19 Gallery% 18 Achievement% 19 Wizard Run 0 Options --------- Layout 1 ASCII 0 Keyboard 0 Movement Numpad Keybinds 0 Fullscreen 1 Font 32/SmallcapsGlow Map View 50x35 Zoom Use 0% Tactical HUD 1 Map Filters NONE Filters NONE Steam 1 RUN: d6d12fdc-56bf-4d29-b449-90e463503811